Workbook

Sheet Superpesis
B1: Jutta Reijonen | E1: 23.11.1973
B2: SUPERPESIS | E2: Runkosarja | I2: Kärkilyönnit (KL), pesänvälit | P2: Ylempi loppusarja | U2: Alempi loppusarja | Z2: Arvo-ottelut ja mitalit | AF2: Runkosarjan jälkeen
B3: Vuosi | C3: Sija | D3: Seura | E3: OTT | F3: KUN | G3: LÖI | H3: TOI | I3: KL | J3: 0 > 1 | K3: 1 > 2 | L3: 2 > 3 | M3: 3 > k | N3: KL-% | P3: OTT | Q3: KUN | R3: LÖI | S3: TOI | T3: KL | U3: OTT | V3: KUN | W3: LÖI | X3: TOI | Y3: KL | Z3: IL | AA3: LL | AB3: Halli | AC3: K | AD3: H | AE3: P
B4: 1989 | C4: 2. | D4: ViU | E4: 14 | F4: 0 | G4: 4 | H4: 4 | I4: 21 | J4: 3 | K4: 6 | L4: 8 | M4: =PRODUCT(F4+G4) -> 4 | N4: ---- | AB4: 1 | AD4: 1 | AF4: play off
B5: 1990 | C5: 1. | D5: ViU | E5: 17 | F5: 0 | G5: 5 | H5: 19 | I5: 42 | J5: 23 | K5: 6 | L5: 8 | M5: 5 | N5: 51.9 % | O5: =PRODUCT(I5/N5) -> 80.92485549 | AB5: 1 | AC5: 1 | AF5: play off
B6: 1991 | C6: 2. | D6: ViU | E6: 13 | F6: 0 | G6: 7 | H6: 18 | I6: 64 | J6: 32 | K6: 14 | L6: 11 | M6: =SUM(F6+G6) -> 7 | N6: 58.2 % | O6: =PRODUCT(I6/N6) -> 109.9656357 | AB6: 1 | AD6: 1 | AF6: play off
B7: 1992 | D7: ViU 2 | F7: ykköspesis | O7: 0
B8: 1992 | C8: 3. | D8: ViU | E8: 14 | F8: 0 | G8: 5 | H8: 10 | I8: 23 | J8: 7 | K8: 7 | L8: 4 | M8: =SUM(F8+G8) -> 5 | N8: 46.9 % | O8: 49.04051173 | AE8: 1 | AF8: play off
B9: 1993 | C9: 6. | D9: ViU | E9: 24 | F9: 1 | G9: 9 | H9: 18 | I9: 73 | J9: 25 | K9: 12 | L9: 26 | M9: =SUM(F9+G9) -> 10 | N9: 43.7 % | O9: 167.0480549 | AF9: play off
B10: 1994 | C10: 6. | D10: ViU | E10: 23 | F10: 0 | G10: 11 | H10: 10 | I10: 61 | J10: 13 | K10: 16 | L10: 21 | M10: 11 | N10: 45.1 % | O10: 135.2549889 | AF10: puolivälierät
B11: 1995 | C11: 6. | D11: ViU | E11: 22 | F11: 0 | G11: 12 | H11: 14 | I11: 84 | J11: 21 | K11: 25 | L11: 26 | M11: 12 | N11: 49.4 % | O11: 170.0404858 | Z11: 1 | AF11: play off
B12: 1996 | C12: 1. | D12: Kiri | E12: 24 | F12: 0 | G12: 15 | H12: 22 | I12: 83 | J12: 32 | K12: 16 | L12: 20 | M12: 15 | N12: 47.4 % | O12: 175.1054852 | AC12: 1 | AF12: play off
B13: 1997 | C13: 1. | D13: Kiri | E13: 20 | F13: 1 | G13: 7 | H13: 18 | I13: 48 | J13: 24 | K13: 10 | L13: 6 | M13: =PRODUCT(F13+G13) -> 8 | N13: 44.4 % | O13: 108.1081081 | AC13: 1 | AF13: play off
B14: 1998 | C14: 5. | D14: ViU | E14: 22 | F14: 2 | G14: 8 | H14: 29 | I14: 108 | J14: 29 | K14: 48 | L14: 21 | M14: =PRODUCT(F14+G14) -> 10 | N14: 62.4 % | O14: 173.0769231 | AF14: play off
B15: Yhteensä | E15: =SUM(E4:E14) -> 193 | F15: 4 | G15: 83 | H15: 162 | I15: 607 | J15: 209 | K15: 160 | L15: 151 | M15: 87 | N15: =PRODUCT((I15-21)/O15) -> 50.1 % | O15: =SUM(O5:O14) -> 1168.565049 | P15: =SUM(P4:P14) -> 0 | Q15: 0 | R15: 0 | S15: 0 | T15: 0 | U15: 0 | V15: 0 | W15: 0 | X15: 0 | Y15: 0 | Z15: 1 | AA15: 0 | AB15: 3 | AC15: 3 | AD15: 2 | AE15: 1
B16: Pesispörssi | D16: =SUM(F15:H15)+((I15-F15-G15)/3)+(E15/3)+(Z15*25)+(AA15*25)+(AB15*15)+(AC15*25)+(AD15*20)+(AE15*15) -> 686.7
B18: URA SUPERISSA | E18: OTT | F18: KUN | G18: LÖI | H18: TOI | I18: KL | K18: ka/L | L18: ka/T | M18: ka/KL | N18: K - % | P18: ENSIMMÄISET
B19: Runkosarja | E19: =PRODUCT(E15) -> 193 | F19: =PRODUCT(F15) -> 4 | G19: =PRODUCT(G15) -> 83 | H19: =PRODUCT(H15) -> 162 | I19: =PRODUCT(I15) -> 607 | K19: =PRODUCT((F19+G19)/E19) -> 0.45 | L19: =PRODUCT(H19/E19) -> 0.84 | M19: =PRODUCT(I19/E19) -> 3.15 | N19: =PRODUCT(N15) -> 50.1 % | P19: Ottelu
B20: Ylempi loppusarja | P20: Lyöty juoksu
B21: Alempi loppusarja | P21: Tuotu juoksu
B22: KAIKKI | E22: =SUM(E19:E21) -> 193 | F22: =SUM(F19:F21) -> 4 | G22: =SUM(G19:G21) -> 83 | H22: =SUM(H19:H21) -> 162 | I22: =SUM(I19:I21) -> 607 | K22: =PRODUCT((F22+G22)/E22) -> 0.45 | L22: =PRODUCT(H22/E22) -> 0.84 | M22: =PRODUCT(I22/E22) -> 3.15 | P22: Kunnari
B24: Seurat | D24: ViU = Viinijärven Urheilijat (1914)
D25: Kiri = Jyväskylän Kiri (1930)

Sheet Arvo-ottelut
B1: ITÄ - LÄNSI - KORTTI
B2: Jutta Reijonen | C2: 23.11.1973
B3: NAISET | C3: Itä - Länsi, tulos | D3: Joukkue | E3: Seura | G3: V | H3: T | I3: H | J3: Up. | K3: Lj. | L3: Palk. | M3: O | N3: K | O3: L | P3: T | Q3: KL | R3: 1 | S3: 2 | T3: 3 | U3: k | V3: KL-% | W3: Pelinjohtaja | X3: Yleisöä
B4: 15.07. 1995 Alajärvi | C4: 1-1 (4-3, 3-4, 0-0) | D4: Itä | E4: ViU | H4: 1 | K4: jok | M4: 1 | Q4: 0/1 | R4: 0/1 | V4: 0.0 % | W4: Aulis Väisänen | X4: 4622
B5: Ikä ensimmäisessä ottelussa | C5: 21 v 7 kk 22 pv
B7: B-TYTÖT | C7: Itä - Länsi, tulos | D7: Joukkue | E7: Seura | G7: V | H7: T | I7: H | J7: Up. | K7: Lj. | L7: Palk. | M7: O | N7: K | O7: L | P7: T | Q7: KL | R7: 1 | S7: 2 | T7: 3 | U7: k | V7: KL-% | W7: Pelinjohtaja | X7: Yleisöä
B8: 06.07. 1989 Kemi | C8: 11-6 | D8: Itä | E8: ViU | G8: 1 | J8: 3p | K8: 3 | L8: III p | M8: 1 | P8: 1 | Q8: 6/10 | R8: 1/1 | S8: 2/2 | T8: 3/5 | U8: 0/2 | V8: 60.0 % | W8: Riitta Jalonen | X8: 1000
